fUSD/lending_fUSD_20250227
["ID","MTS","AMOUNT","RATE_DAILY","PERIOD"]
[354732356,1740649841977,-154.13805979,0.00057668,15]
[354732358,1740649841986,-4506.62935413,0.00057759,15]
[354732360,1740649841995,-500.0,0.00057808,120]
[354732362,1740649842004,-500.0,0.00057808,120]
[354732364,1740649842015,-501.2411636,0.00057808,120]
[354732366,1740649842023,-799.15,0.00057808,120]
[354732368,1740649842032,-500.0,0.00057808,120]
[354732370,1740649842041,-500.0,0.00057808,120]
[354732372,1740649842052,-3004.22,0.00057808,120]
[354732374,1740649842060,-3993.05,0.00057808,120]
[354732376,1740649842070,-500.0,0.00057808,120]
[354732378,1740649842079,-216.15,0.00057808,120]
[354732380,1740649842088,-500.0,0.00057808,120]
[354732382,1740649842097,-563.24,0.00057808,120]
[354732384,1740649842107,-500.0,0.00057808,120]
[354732386,1740649842116,-500.0,0.00057808,120]
[354732388,1740649842125,-500.0,0.00057808,120]
[354732390,1740649842135,-533.9193101,0.00057808,120]
[354732392,1740649842145,-500.0,0.00057808,120]
[354732394,1740649842154,-500.0,0.00057808,120]
[354732396,1740649842163,-500.0,0.00057808,120]
[354732398,1740649842172,-500.0,0.00057808,120]
[354732400,1740649842181,-500.0,0.00057808,120]
[354732402,1740649842191,-500.0,0.00057808,120]
[354732404,1740649842200,-500.0,0.00057808,120]
[354732406,1740649842209,-500.0,0.00057808,120]
[354732407,1740649842220,-500.0,0.00057808,120]
[354732409,1740649842229,-500.0,0.00057808,120]
[354732411,1740649842239,-500.0,0.00057808,120]
[354732413,1740649842248,-500.0,0.00057808,120]
[354732415,1740649842257,-500.0,0.00057808,120]
[354732417,1740649842266,-193.5,0.00057808,120]
[354732419,1740649842276,-272.91,0.00057808,120]
[354732421,1740649842285,-500.0,0.00057808,120]
[354732423,1740649842295,-500.0,0.00057808,120]
[354732425,1740649842305,-500.0,0.00057808,120]
[354732427,1740649842315,-222.83,0.00057808,120]
[354732430,1740649842324,-251.66,0.00057808,120]
[354732431,1740649842334,-204.05,0.00057808,120]
[354732432,1740649842343,-161.53,0.00057808,120]
[354732433,1740649842354,-500.0,0.00057808,120]
[354732434,1740649842363,-509.33,0.00057808,120]
[354732435,1740649842372,-500.0,0.00057808,120]
[354732436,1740649842381,-1447.0,0.00057808,120]
[354732437,1740649842390,-173.10298118,0.00057808,120]
[354732438,1740649842399,-3010.72,0.00057808,120]
[354732439,1740649842408,-500.0,0.00057808,120]
[354732440,1740649842417,-3831.43,0.00057808,120]
[354732441,1740649842426,-500.0,0.00057808,120]
[354732442,1740649842435,-500.0,0.00057808,120]
[354732443,1740649842444,-620.02,0.00057808,120]
[354732445,1740649842454,-500.0,0.00057808,120]
[354732447,1740649842463,-336.66,0.00057808,120]
[354732449,1740649842473,-500.0,0.00057808,120]
[354732451,1740649842482,-500.0,0.00057808,120]
[354732453,1740649842491,-500.0,0.00057808,120]
[354732455,1740649842500,-500.0,0.00057808,120]
[354732457,1740649842509,-500.0,0.00057808,120]
[354732459,1740649842519,-500.0,0.00057808,120]
[354732461,1740649842527,-500.0,0.00057808,120]
[354732463,1740649842536,-285.15,0.00057808,120]
[354732465,1740649842545,-500.0,0.00057808,120]
[354732467,1740649842555,-500.0,0.00057808,120]
[354732469,1740649842564,-219.6,0.00057808,120]
[354732471,1740649842574,-500.0,0.00057808,120]
[354732474,1740649842583,-500.0,0.00057808,120]
[354732476,1740649842593,-8452.09,0.00057808,120]
[354732479,1740649842603,-500.0,0.00057808,120]
[354732481,1740649842613,-460.00394703,0.00057808,120]
[354732483,1740649842622,-500.0,0.00057808,120]
[354732485,1740649842632,-500.0,0.00057808,120]
[354732487,1740649842643,-500.0,0.00057808,120]
[354732489,1740649842654,-500.0,0.00057808,120]
[354732491,1740649842664,-500.0,0.00057808,120]
[354732493,1740649842673,-261.43,0.00057808,120]
[354732495,1740649842683,-1200.99,0.00057808,120]
[354732497,1740649842692,-500.0,0.00057808,120]
[354732499,1740649842701,-280.97,0.00057808,120]
[354732501,1740649842711,-952.08,0.00057808,120]
[354732503,1740649842721,-420.43840473,0.00057808,120]
[354732505,1740649842730,-500.0,0.00057808,120]
[354732507,1740649842740,-500.0,0.00057808,120]
[354732509,1740649842749,-500.0,0.00057808,120]
[354732511,1740649842758,-321.00459934,0.00057808,120]
[354732513,1740649842768,-658.85,0.00057808,120]
[354732515,1740649842777,-501.3976,0.00057808,120]
[354732517,1740649842787,-3535.84,0.00057808,120]
[354732519,1740649842796,-500.0,0.00057808,120]
[354732521,1740649842806,-500.0,0.00057808,120]
[354732523,1740649842815,-500.0,0.00057808,120]
[354732525,1740649842825,-500.0,0.00057808,120]
[354732527,1740649842834,-500.0,0.00057808,120]
[354732529,1740649842843,-500.0,0.00057808,120]
[354732531,1740649842852,-500.0,0.00057808,120]
[354732533,1740649842861,-154.13805979,0.000579,15]
[354732536,1740649842871,-4506.62935413,0.00057931,15]
[354732539,1740649842880,-150.5,0.0005797,30]
[354732541,1740649842890,-75922.65688617,0.0005797,120]
[354732542,1740649842899,-776.84,0.00057973,30]
[354732545,1740649842908,-440.71,0.00057973,30]
[354732547,1740649842917,-233.58411766,0.00057973,15]
[354732549,1740649842927,-500.0,0.00057973,2]
[354732551,1740649842936,-150.5,0.0005798,30]
[354732553,1740649842946,-150.5,0.0005799,30]
[354732555,1740649842960,-500.0,0.00057999,120]
[354732557,1740649842970,-1000000.0,0.00058,120]
[354732560,1740649842979,-1000000.0,0.00058,120]
[354732562,1740649842988,-420.58668707,0.00058,71]
[354732564,1740649842998,-313.71295702,0.00058058,2]
[354732567,1740649843007,-500.0,0.00058082,120]
[354732570,1740649843016,-500.0,0.00058082,120]
[354732572,1740649843026,-799.15,0.00058082,120]
[354732574,1740649843036,-500.0,0.00058082,120]
[354732576,1740649843045,-500.0,0.00058082,120]
[354732578,1740649843054,-3004.22,0.00058082,120]
[354732580,1740649843063,-3993.05,0.00058082,120]
[354732582,1740649843072,-500.0,0.00058082,120]
[354732584,1740649843081,-239.32,0.00058082,120]
[354732586,1740649843091,-501.14,0.00058082,120]
[354732599,1740649843205,-244.51783578,0.00058082,120]
[354732601,1740649843215,-500.0,0.00058082,120]
[354732603,1740649843224,-500.0,0.00058082,120]
[354732605,1740649843234,-500.0,0.00058082,120]
[354732607,1740649843243,-500.0,0.00058082,120]
[354732609,1740649843252,-402.96314546,0.00058082,120]
[354732611,1740649843261,-197.57,0.00058082,120]
[354732612,1740649843270,-500.0,0.00058082,120]
[354732614,1740649843279,-500.0,0.00058082,120]
[354732616,1740649843290,-515.48561393,0.00058082,120]
[354732619,1740649843300,-261.95599022,0.00058082,120]
[354732620,1740649843311,-500.0,0.00058082,120]
[354732622,1740649843321,-500.0,0.00058082,120]
[354732624,1740649843330,-500.0,0.00058082,120]
[354732626,1740649843339,-500.0,0.00058082,120]
[354732628,1740649843348,-500.0,0.00058082,120]
[354732630,1740649843358,-616.41,0.00058082,120]
[354732632,1740649843368,-500.0,0.00058082,120]
[354732634,1740649843377,-1447.0,0.00058082,120]
[354732636,1740649843386,-3010.72,0.00058082,120]
[354732638,1740649843395,-500.0,0.00058082,120]
[354732640,1740649843404,-3831.43,0.00058082,120]
[354732642,1740649843413,-394.85,0.00058082,120]
[354732644,1740649843423,-500.0,0.00058082,120]
[354732646,1740649843433,-594.78,0.00058082,120]
[354732648,1740649843442,-500.0,0.00058082,120]
[354732650,1740649843452,-500.0,0.00058082,120]
[354732652,1740649843461,-500.0,0.00058082,120]
[354732654,1740649843470,-369.61,0.00058082,120]
[354732656,1740649843479,-500.0,0.00058082,120]
[354732658,1740649843488,-500.0,0.00058082,120]
[354732660,1740649843497,-455.82106765,0.00058082,120]
[354732662,1740649843507,-500.0,0.00058082,120]
[354732664,1740649843516,-500.0,0.00058082,120]
[354732666,1740649843526,-500.0,0.00058082,120]
[354732668,1740649843536,-500.0,0.00058082,120]
[354732671,1740649843545,-8452.09,0.00058082,120]
[354732674,1740649843554,-241.11,0.00058082,120]
[354732677,1740649843563,-500.0,0.00058082,120]
[354732680,1740649843573,-500.0,0.00058082,120]
[354732683,1740649843582,-347.84,0.00058082,120]
[354732685,1740649843592,-500.0,0.00058082,120]
[354732687,1740649843601,-500.0,0.00058082,120]
[354732689,1740649843611,-1200.99,0.00058082,120]
[354732691,1740649843620,-500.0,0.00058082,120]
[354732693,1740649843630,-952.08,0.00058082,120]
[354732695,1740649843639,-500.0,0.00058082,120]
[354732697,1740649843648,-500.0,0.00058082,120]
[354732699,1740649843658,-500.0,0.00058082,120]
[354732701,1740649843667,-658.85,0.00058082,120]
[354732703,1740649843676,-3535.84,0.00058082,120]
[354732705,1740649843687,-280.41,0.00058082,120]
[354732707,1740649843696,-500.0,0.00058082,120]
[354732709,1740649843705,-500.0,0.00058082,120]
[354732711,1740649843714,-500.0,0.00058082,120]
[354732713,1740649843724,-500.0,0.00058082,120]
[354732715,1740649843733,-500.0,0.00058082,120]
[354732717,1740649843742,-500.0,0.00058082,120]
[354732719,1740649843751,-341.0,0.00058094,30]
[354732721,1740649843760,-4506.62935413,0.00058103,15]
[354732723,1740649843769,-1000.0,0.0005811,120]
[354732725,1740649843778,-200.0,0.00058146,15]
[354732727,1740649843787,-500.0,0.00058273,120]
[354732729,1740649843796,-4506.62935413,0.00058275,15]
[354732731,1740649843805,-500.0,0.00058356,120]
[354732733,1740649843816,-555.57944092,0.00058356,120]
[354732735,1740649843825,-799.15,0.00058356,120]
[354732737,1740649843834,-260.4,0.00058356,120]
[354732739,1740649843843,-500.0,0.00058356,120]
[354732741,1740649843853,-3004.22,0.00058356,120]
[354732743,1740649843862,-3993.05,0.00058356,120]
[354732745,1740649843871,-500.0,0.00058356,120]
[354732747,1740649843880,-171.11,0.00058356,120]
[354732749,1740649843890,-500.0,0.00058356,120]
[354732751,1740649843899,-500.0,0.00058356,120]
[354732753,1740649843909,-500.0,0.00058356,120]
[354732755,1740649843918,-290.71,0.00058356,120]
[354732757,1740649843927,-500.0,0.00058356,120]
[354732758,1740649843936,-500.0,0.00058356,120]
[354732759,1740649843945,-166.96,0.00058356,120]
[354732760,1740649843954,-500.0,0.00058356,120]
[354732761,1740649843967,-500.0,0.00058356,120]
[354732762,1740649843976,-500.0,0.00058356,120]
[354732763,1740649843985,-500.0,0.00058356,120]
[354732764,1740649843994,-1447.0,0.00058356,120]
[354732765,1740649844004,-3010.72,0.00058356,120]
[354732766,1740649844013,-393.62,0.00058356,120]
[354732767,1740649844022,-3831.43,0.00058356,120]
[354732768,1740649844031,-500.0,0.00058356,120]
[354732769,1740649844042,-500.0,0.00058356,120]
[354732770,1740649844052,-500.0,0.00058356,120]
[354732771,1740649844061,-501.0,0.00058356,120]
[354732772,1740649844070,-500.0,0.00058356,120]
[354732773,1740649844079,-500.0,0.00058356,120]
[354732774,1740649844087,-500.0,0.00058356,120]
[354732775,1740649844096,-500.0,0.00058356,120]
[354732776,1740649844106,-500.0,0.00058356,120]
[354732777,1740649844115,-500.0,0.00058356,120]
[354732778,1740649844125,-8452.09,0.00058356,120]
[354732779,1740649844135,-500.0,0.00058356,120]
[354732780,1740649844144,-500.0,0.00058356,120]
[354732781,1740649844153,-500.0,0.00058356,120]
[354732782,1740649844163,-500.0,0.00058356,120]
[354732783,1740649844171,-1200.99,0.00058356,120]
[354732784,1740649844180,-609.6,0.00058356,120]
[354732785,1740649844190,-952.08,0.00058356,120]
[354732786,1740649844199,-500.0,0.00058356,120]
[354732787,1740649844209,-373.98,0.00058356,120]
[354732788,1740649844218,-212.410875,0.00058356,120]
[354732789,1740649844228,-658.85,0.00058356,120]
[354732790,1740649844238,-3535.84,0.00058356,120]
[354732791,1740649844248,-500.0,0.00058356,120]
[354732792,1740649844259,-500.0,0.00058356,120]
[354732793,1740649844269,-500.0,0.00058356,120]
[354732795,1740649844278,-500.0,0.00058356,120]
[354732797,1740649844288,-500.0,0.00058356,120]
[354732799,1740649844297,-500.0,0.00058356,120]
[354732801,1740649844306,-151.28,0.00058384,30]
[354732803,1740649844316,-4506.62935413,0.00058447,15]
[354732805,1740649844324,-151.0,0.00058493,120]
[354732807,1740649844334,-469897.38718583,0.000585,120]
[354732812,1740649844381,-19825.6,0.000585,120]
[354732814,1740649844394,-22275.90294969,0.000585,120]
[354732816,1740649844407,-89249.83268248,0.000585,120]
[354732818,1740649844418,-295.0853724,0.000585,120]
[354732820,1740649844434,-664.72876271,0.000585,120]
[354732822,1740649844446,-382.78188582,0.000585,120]
[354732824,1740649844457,-797.68950568,0.000585,120]
[354732826,1740649844467,-302.8455,0.000585,120]
[354732828,1740649844479,-404.326503,0.000585,120]
[354732830,1740649844493,-358.612,0.000585,120]
[354732832,1740649844504,-4115.48653958,0.000585,120]
[354732834,1740649844514,-737.85943945,0.000585,120]
[354732836,1740649844526,-512.47442503,0.000585,120]
[354732844,1740649846024,-280.40528191,0.000585,120]
[354732845,1740649846079,-551.88546798,0.000585,120]
[354732846,1740649846189,-2611.9450482,0.000585,120]
[354732847,1740649846201,-784.1986915,0.000585,120]
[354732848,1740649846213,-1327.85,0.000585,120]
[354732849,1740649846224,-2414.71086162,0.000585,120]
[354732850,1740649846245,-620.45191063,0.000585,120]
[354732851,1740649846256,-2607.20000008,0.000585,120]
[354732866,1740649871322,167.95807075,0.00049,30]
[354732867,1740649871594,150.0,0.00049,30]
[354732868,1740650059133,46720.82757654,0.00049,30]
[354732869,1740650091592,967786.58191443,0.00049,5]
[354732900,1740651032182,-162.8,0.00026849,2]
[354732901,1740651032191,-150.0,0.00029534,2]
[354732902,1740651032202,-150.0,0.00029748,2]
[354732903,1740651032212,-162.8,0.00032646,2]
[354732904,1740651032221,-150.0,0.00037995,2]
[354732905,1740651032230,-162.8,0.00038443,2]
[354732906,1740651032240,-162.8,0.00044239,2]
[354732907,1740651032250,-219.0,0.000474,5]
[354732908,1740651032260,-201.42389269,0.000489,11]
[354732909,1740651032269,-150.0,0.00048999,4]
[354732910,1740651032279,-2931.21549141,0.00049,2]
[354732911,1740651032289,-1194.7144341,0.00049,5]
[354732912,1740651032554,-650.0,0.00049,5]
[354732913,1740651032566,-1681.21549141,0.00049,5]
[354732968,1740651046237,-2657.94136119,0.00049,5]
[354732969,1740651046248,-2247.45358608,0.00049,5]
[354732970,1740651046347,-382.82511413,0.00049,5]
[354733672,1740651936676,998.05695464,8e-05,2]
[354733674,1740652063821,1077.10809,0.0001,2]
[354733677,1740652087204,425.12328795,9.9e-05,2]
[354733679,1740652108107,2613.30746249,9.828e-05,2]
[354733717,1740652232419,-315.25411372,0.000149,2]
[354733718,1740652232429,-1687.39753612,0.000149,2]
[354733719,1740652232477,-349.97130778,0.000149,2]
[354733720,1740652232489,-780.09523378,0.000149,2]
[354733721,1740652232537,-967.81802057,0.000149,2]
[354733730,1740652238213,-2129.05865449,0.000149,2]
[354733731,1740652238223,-219.90845255,0.000149,2]
[354733732,1740652238233,-310.05228214,0.00014999,2]
[354733733,1740652238243,-500.0,0.00014999,2]
[354733734,1740652238252,-609.21554788,0.00014999,2]
[354733735,1740652238261,-2663416.93026909,0.00015,2]
[354733792,1740652244671,-102069.05819295,0.00015,2]
[354733796,1740652246536,-1015.31338216,0.00015,2]
[354733797,1740652246600,-1000.0,0.00015,2]
[354733871,1740653178931,-176.052,0.000147,2]
[354733872,1740653178962,-867.158,0.000147,2]
[354733873,1740653178988,-3326.70878764,0.000149,2]
[354733874,1740653179013,-300.41906221,0.000149,2]
[354733875,1740653179037,-3942.89383516,0.000149,2]
[354733876,1740653179205,-316.48703911,0.000149,2]
[354733877,1740653179231,-219.90845255,0.000149,2]
[354733878,1740653179258,-500.0,0.00014973,2]
[354733879,1740653179285,-182.76466436,0.00014999,2]
[354733880,1740653179311,-150.0,0.00014999,2]
[354733881,1740653179340,-90017.60815897,0.00015,2]
[354733886,1740653262041,-169.25098724,0.000149,2]
[354733887,1740653262063,-500.0,0.00014973,2]
[354733888,1740653262093,-2184268.98945276,0.00015,2]
[354733889,1740653285902,-500.0,0.000149,2]
[354733890,1740653287537,-500.0,0.000149,2]
[354733891,1740653335957,-1628.59589012,0.000149,2]
[354733892,1740653335985,-58.80345885,0.000149,2]
[354733896,1740653431522,-161.1049937,0.000149,2]
[354733897,1740653431533,-382.35942091,0.000149,2]
[354733898,1740653431575,-1370.03783917,0.000149,2]
[354733899,1740653431586,-500.0,0.00014973,2]
[354733900,1740653431599,-167.97486657,0.0001499,2]
[354733901,1740653431612,-2661.67923542,0.00015,2]
[354733902,1740653431630,-6200.59074148,0.00015,2]
[354733903,1740653431644,-3087.34795571,0.00015,2]
[354733904,1740653431657,-2335.83331472,0.00015,2]
[354733905,1740653431683,-2457.49286247,0.00015,2]
[354733906,1740653431697,-502.85226426,0.00015,2]
[354733907,1740653431735,-314.43951073,0.00015,2]
[354733908,1740653431790,-42097.73069236,0.00015,2]
[354733909,1740653431802,-29154.20090426,0.00015,2]
[354733910,1740653431843,-32803.71828801,0.00015,2]
[354733911,1740653431855,-2102.54975196,0.00015,2]
[354733912,1740653431868,-5835.77814978,0.00015,2]
[354733913,1740653431898,-2021.717,0.00015,2]
[354733914,1740653431912,-1025.55818525,0.00015,2]
[354733917,1740653437471,-7009.77528924,0.00015,2]
[354733918,1740653437525,-519.425,0.00015,2]
[354733919,1740653437537,-266.202,0.00015,2]
[354733920,1740653437579,-439545.34235448,0.00015,2]
[354733921,1740653437632,-4411.7058,0.00015,2]
[354733922,1740653437644,-461.03819732,0.00015,2]
[354733923,1740653437659,-3893942.24695525,0.00015,2]
[354733924,1740653437669,-2700806.43639384,0.00015,2]
[354733925,1740653437679,-897.59007,0.00015,2]
[354733926,1740653437689,-2845.52219921,0.00016,2]
[354733927,1740653437700,-12701.7977984,0.00019999,2]
[354733928,1740653437710,-91229.86342993,0.0002,2]
[354733929,1740653437720,-134820.72510765,0.0002,2]
[354733930,1740653437731,-151.63696306,0.0002,2]
[354733931,1740653437741,-897.59008,0.0002,2]
[354733932,1740653437751,-439.99709354,0.00020452,2]
[354733933,1740653437762,-250.0,0.00021,2]
[354733934,1740653437772,-204.79492008,0.000215,2]
[354733935,1740653437782,-500.0,0.00021616,2]
[354733936,1740653437793,-300.41906219,0.00021733,2]
[354733937,1740653437804,-300.0,0.00023,2]
[354733938,1740653437814,-500.0,0.00023068,2]
[354733939,1740653437824,-500.0,0.00023562,2]
[354733940,1740653437834,-204.79492008,0.000247,3]
[354733941,1740653437844,-150.5,0.0002497,30]
[354733942,1740653437854,-150.5,0.0002498,30]
[354733943,1740653437864,-150.5,0.0002499,30]
[354733944,1740653437874,-897.59007,0.00025,2]
[354733945,1740653437884,-200.0,0.00025,120]
[354733946,1740653437895,-578.0,0.00026192,2]
[354733947,1740653437904,-500.0,0.00026493,2]
[354733948,1740653437915,-165.16,0.00026849,2]
[354733949,1740653437926,-1136.30540192,0.00027394,2]
[354733950,1740653437936,-8810.18156,0.00028393,2]
[354733951,1740653437946,-300.41906219,0.00028567,2]
[354733952,1740653437956,-897.59008,0.0003,2]
[354733953,1740653437966,-500.0,0.00030877,2]
[354733954,1740653437976,-204.79492008,0.000335,6]
[354733955,1740653437987,-375.32,0.0003444,2]
[354733956,1740653437998,-897.59008,0.00035,2]
[354733957,1740653438008,-300.41906219,0.000354,2]
[354733958,1740653438018,-1752.39726006,0.00036025,2]
[354733959,1740653438028,-375.32,0.00036704,2]
[354733960,1740653438040,-250.0,0.00036952,2]
[354733961,1740653438057,-1000.0,0.0003709,2]
[354733962,1740653438067,-174.71037224,0.000372,103]
[354733963,1740653438078,-184.35,0.00037268,2]
[354733964,1740653438088,-632.33,0.00037295,2]
[354733965,1740653438098,-150.0,0.00037418,7]
[354733966,1740653438282,-500.0,0.00037452,2]
[354733967,1740653438292,-867.158,0.00038525,52]
[354733968,1740653438301,-375.32,0.00038967,2]
[354733969,1740653438311,-17994.45,0.00039832,2]
[354733970,1740653438320,-897.59007,0.0004,2]
[354733971,1740653438330,-200.0,0.00040101,2]
[354733972,1740653438340,-375.32,0.00041231,2]
[354733973,1740653438350,-166.6,0.00041602,120]
[354733974,1740653438359,-2000.0,0.00041708,120]
[354733975,1740653438369,-1000.0,0.00041726,2]
[354733976,1740653438378,-300.41906219,0.00042233,6]
[354733977,1740653438387,-204.79492008,0.000423,9]
[354733978,1740653438396,-375.32,0.00043495,2]
[354733979,1740653438406,-200.0,0.00043559,120]
[354733980,1740653438415,-2027.0,0.00043745,2]
[354733981,1740653438425,-1414.347,0.00043745,2]
[354733982,1740653438434,-784.0,0.00043745,2]
[354733983,1740653438443,-540.906,0.00043745,2]
[354733984,1740653438453,-1435.855,0.00043745,2]
[354733985,1740653438462,-1267.0,0.00043745,2]
[354733986,1740653438471,-955.037,0.00043745,2]
[354733987,1740653438480,-4033.0,0.00043745,2]
[354733988,1740653438489,-2067.964,0.00043745,2]
[354733989,1740653438498,-151.628,0.00043745,2]
[354733990,1740653438507,-288.186,0.00043745,2]
[354733991,1740653438516,-375.32,0.00045759,2]
[354733992,1740653438526,-159.894748,0.00045945,2]
[354733993,1740653438536,-1000.0,0.00046363,2]
[354733994,1740653438546,-375.32,0.00048023,2]
[354733995,1740653438555,-165.16,0.00048877,2]
[354733996,1740653438564,-52459.35334522,0.00049,5]
[354733997,1740653438573,-150.0,0.00049,2]
[354733998,1740653438582,-150.0,0.00049,2]
[354733999,1740653438590,-5037.5627242,0.00049033,2]
[354734000,1740653438599,-300.41906219,0.00049067,34]
[354734001,1740653438608,-500.0,0.00049315,120]
[354734002,1740653438616,-500.0,0.00049589,120]
[354734003,1740653438625,-500.0,0.00049863,120]
[354734004,1740653438634,-357919.83265177,0.0004988,30]
[354734005,1740653438643,-162.8,0.00050036,2]
[354734006,1740653438652,-500.0,0.00050136,120]
[354734007,1740653438661,-375.32,0.00050287,2]
[354734008,1740653438669,-500.0,0.0005041,120]
[354734009,1740653438678,-150.0,0.00050588,2]
[354734010,1740653438687,-347.87715147,0.00050684,120]
[354734011,1740653438696,-1000.0,0.00050999,120]
[354734012,1740653438705,-1500.0,0.00051,30]
[354734013,1740653438714,-204.79492008,0.000511,12]
[354734014,1740653438723,-73914.0,0.0005119,30]
[354734015,1740653438732,-632.33,0.00052213,2]
[354734016,1740653438741,-247.37863544,0.00052519,120]
[354734017,1740653438749,-375.32,0.00052551,2]
[354734018,1740653438758,-450.0,0.000539,2]
[354734019,1740653438767,-150.0,0.000539,2]
[354734020,1740653438776,-376.15610984,0.00053987,120]
[354734021,1740653438785,-540000.0,0.00054,120]
[354734022,1740653438796,-151.0,0.00054,120]
[354734023,1740653438805,-151.0,0.00054,120]
[354734024,1740653438814,-151.0,0.00054,120]
[354734025,1740653438823,-151.0,0.00054,120]
[354734026,1740653438833,-151.0,0.00054,120]
[354734027,1740653438842,-151.0,0.00054,120]
[354734028,1740653438851,-191.385268,0.00054,120]
[354734029,1740653438860,-191.385268,0.00054,120]
[354734030,1740653438869,-152.118834,0.00054,120]
[354734031,1740653438879,-151.0,0.00054,120]
[354734032,1740653438888,-151.0,0.00054,120]
[354734033,1740653438897,-151.0,0.00054,120]
[354734034,1740653438906,-151.0,0.00054,3]
[354734035,1740653438915,-151.0,0.00054,120]
[354734036,1740653438924,-151.0,0.00054,120]
[354734037,1740653438933,-151.0,0.00054,120]
[354734038,1740653438942,-152.219353,0.00054,120]
[354734039,1740653438953,-151.0,0.00054,120]
[354734040,1740653438963,-151.0,0.00054,30]
[354734041,1740653438972,-151.0,0.00054,120]
[354734042,1740653438981,-151.0,0.00054,120]
[354734043,1740653438991,-151.0,0.00054,120]
[354734044,1740653439000,-151.0,0.00054,120]
[354734045,1740653439009,-151.0,0.00054,120]
[354734046,1740653439018,-151.0,0.00054,120]
[354734047,1740653439026,-151.812572,0.00054,120]
[354734048,1740653439035,-151.0,0.00054,120]
[354734049,1740653439045,-151.0,0.00054,120]
[354734050,1740653439054,-151.0,0.00054,120]
[354734051,1740653439063,-151.0,0.00054,120]
[354734052,1740653439072,-249.84768,0.00054,120]
[354734053,1740653439081,-151.0,0.00054,120]
[354734054,1740653439090,-337.459539,0.00054,120]
[354734055,1740653439099,-337.459539,0.00054,120]
[354734056,1740653439108,-151.0,0.00054,120]
[354734057,1740653439118,-151.0,0.00054,120]
[354734058,1740653439127,-151.0,0.00054,120]
[354734059,1740653439136,-151.0,0.00054,120]
[354734060,1740653439150,-151.0,0.00054,120]
[354734061,1740653439159,-151.0,0.00054,120]
[354734062,1740653439168,-151.0,0.00054,120]
[354734063,1740653439177,-151.0,0.00054,120]
[354734064,1740653439187,-151.0,0.00054,120]
[354734065,1740653439196,-151.0,0.00054,120]
[354734066,1740653439206,-151.0,0.00054,120]
[354734067,1740653439215,-151.0,0.00054,120]
[354734068,1740653439225,-500.0,0.00054794,120]
[354734069,1740653439235,-500.0,0.00054794,120]
[354734070,1740653439244,-700.71,0.00054794,120]
[354734071,1740653439253,-500.0,0.00054794,120]
[354734072,1740653439263,-500.0,0.00054794,120]
[354734073,1740653439272,-500.0,0.00054794,120]
[354734074,1740653439282,-500.0,0.00054794,120]
[354734075,1740653439291,-500.0,0.00054794,120]
[354734076,1740653439300,-500.0,0.00054794,120]
[354734077,1740653439309,-500.0,0.00054794,120]
[354734078,1740653439319,-2634.14,0.00054794,120]
[354734079,1740653439328,-500.0,0.00054794,120]